bitfinex-derivatives/quotes_SOLF0:USTF0_20220108
["timestamp","ask_amount","ask_price","bid_price","bid_amount"]
[1641656184117,19.90496842,142.81,142.77,14.62481454]
[1641656184318,0.60031799,142.78,142.77,14.62481454]
[1641656184519,7.92331799,142.78,142.77,14.62481454]
[1641656184718,7.92331799,142.78,142.76,14.62481454]
[1641656184918,27.22796842,142.78,142.76,14.62481454]
[1641656185118,0.60031799,142.77,142.76,14.62481454]
[1641656185319,0.60031799,142.77,142.73,39.00271996]
[1641656185521,0.60031799,142.74,142.73,39.00271996]
[1641656185818,7.09531799,142.74,142.73,14.87398697]
[1641656187020,7.09531799,142.74,142.68,90.59478536]
[1641656187220,6.495,142.74,142.68,90.59478536]
[1641656187421,0.60031799,142.73,142.68,90.59478536]
[1641656187820,6.495,142.74,142.68,73.67325467]
[1641656188020,6.495,142.74,142.68,34.67053471]
[1641656188320,0.60031799,142.73,142.68,34.67053471]
[1641656190223,0.60031799,142.74,142.68,34.67053471]
[1641656190423,0.60031799,142.74,142.69,1.75]
[1641656190821,0.60031799,142.74,142.69,10.451]
[1641656191222,0.60031799,142.74,142.71,27.66479]
[1641656191621,4.0,142.8,142.71,27.66479]
[1641656192221,19.90698993,142.79,142.71,27.66479]
[1641656193425,5.60282851,142.79,142.71,27.66479]
[1641656193626,9.60282851,142.79,142.71,27.66479]
[1641656193825,16.88582851,142.79,142.71,27.66479]
[1641656194026,19.90698993,142.78,142.71,27.66479]
[1641656199631,23.90698993,142.78,142.68,36.42053471]
[1641656199831,5.60377856,142.77,142.68,27.66479]
[1641656200031,13.60577856,142.77,142.68,27.66479]
[1641656200231,17.60577856,142.77,142.68,27.66479]
[1641656200432,19.90698993,142.76,142.68,27.66479]
[1641656201234,4.0,142.72,142.67,39.00271996]
[1641656201532,5.60608312,142.71,142.67,39.00271996]
[1641656201733,9.60608312,142.71,142.66,106.48411996]
[1641656201933,9.60608312,142.71,142.66,39.00271996]
[1641656202133,5.60608312,142.71,142.66,39.00271996]
[1641656202534,5.60608312,142.71,142.63,27.66479]
[1641656202535,5.60608312,142.71,142.63,151.10690533]
[1641656203635,5.60608312,142.71,142.63,95.21659]
[1641656204837,5.60675054,142.69,142.62,106.19671996]
[1641656205037,18.39675054,142.69,142.62,39.00271996]
[1641656205438,5.60755597,142.67,142.62,39.00271996]
[1641656206038,5.60755597,142.67,142.61,39.00271996]
[1641656206439,34.39232584,142.7,142.61,39.00271996]
[1641656206642,6.72753584,142.7,142.61,39.00271996]
[1641656207041,10.72753584,142.7,142.6,134.44580996]
[1641656207644,4.0,142.65,142.6,134.44580996]
[1641656207843,5.633,142.65,142.6,39.00271996]
[1641656208950,5.633,142.65,142.57,199.88480996]
[1641656209155,5.60745558,142.67,142.57,199.88480996]
[1641656209550,9.60745558,142.67,142.57,199.88480996]
[1641656210651,9.60745558,142.67,142.57,203.88480996]
[1641656210853,5.60745558,142.67,142.57,203.88480996]
[1641656211051,5.60745558,142.67,142.58,1.752]
[1641656211252,5.60745558,142.67,142.59,4.0]
[1641656211551,6.72739741,142.71,142.66,27.66479]
[1641656211752,6.72739741,142.71,142.66,36.44479]
[1641656212351,8.07122552,142.73,142.66,36.44479]
[1641656213352,5.6048228,142.74,142.66,36.44479]
[1641656213951,4.0,142.8,142.67,4.0]
[1641656214152,10.48,142.8,142.68,5.75]
[1641656214551,10.62,142.82,142.68,5.75]
[1641656214753,11.00648099,142.83,142.69,63.0183]
[1641656214953,4.0,142.82,142.7,1.75]
[1641656215152,5.6022207,142.81,142.7,1.75]
[1641656215551,5.6022207,142.81,142.74,27.66479]
[1641656215952,34.38582102,142.84,142.74,35.80379]
[1641656216153,7.00525394,142.85,142.74,39.80379]
[1641656216352,8.06410153,142.86,142.75,1.75]
[1641656217153,14.83340262,142.87,142.76,4.0]
[1641656217353,14.83340262,142.87,142.77,5.75]
[1641656217553,14.83340262,142.87,142.77,14.556]
[1641656217753,7.00255593,142.91,142.84,27.66479]
[1641656217952,7.00255593,142.91,142.84,35.72679]
[1641656218352,19.89715683,142.9,142.84,35.72679]
[1641656219254,19.89715683,142.9,142.81,1.749]
[1641656219456,23.89715683,142.9,142.78,80.47610262]
[1641656219655,23.89715683,142.9,142.8,27.66479]
[1641656220156,23.89715683,142.89,142.8,27.66479]
[1641656220556,19.89715683,142.88,142.8,27.66479]
[1641656222056,19.89715683,142.89,142.8,27.66479]
[1641656223058,23.89715683,142.89,142.8,27.66479]
[1641656223459,19.89715683,142.88,142.8,27.66479]
[1641656227463,4.0,142.84,142.79,1.75]
[1641656227663,11.691,142.84,142.75,80.51850262]
[1641656227863,5.60227049,142.8,142.75,65.6851]
[1641656228064,12.40727049,142.8,142.73,78.69550262]
[1641656228266,12.40727049,142.8,142.73,14.83340262]
[1641656228466,5.60295392,142.79,142.73,14.83340262]
[1641656229468,9.60295392,142.79,142.71,63.5957]
[1641656229667,4.0,142.78,142.71,63.5957]
[1641656229866,9.60295392,142.79,142.71,63.5957]
[1641656230266,37.26774392,142.79,142.71,63.5957]
[1641656231566,33.26774392,142.79,142.71,63.5957]
[1641656231768,4.0,142.76,142.71,63.5957]
[1641656231971,4.0,142.75,142.69,6.783]
[1641656232167,31.66479,142.75,142.71,4.91844824]
[1641656232368,5.60503467,142.73,142.71,4.91844824]
[1641656232569,12.19203467,142.73,142.71,4.91844824]
[1641656233372,12.19203467,142.73,142.69,6.783]
[1641656233770,4.0,142.71,142.69,6.783]
[1641656233970,16.19203467,142.73,142.69,6.783]
[1641656234371,4.0,142.72,142.69,6.783]
[1641656234971,8.22688585,142.73,142.69,6.783]
[1641656235272,26.587,142.73,142.69,6.783]
[1641656236273,27.66479,142.7,142.69,6.783]
[1641656237475,27.66479,142.7,142.65,4.91844824]
[1641656238374,27.66479,142.7,142.65,8.05840936]
[1641656238977,27.66479,142.7,142.65,4.91844824]
[1641656239377,27.66479,142.7,142.66,4.0]
[1641656239579,34.67520046,142.75,142.69,4.0]
[1641656239778,27.66479,142.75,142.69,4.0]
[1641656239977,27.66479,142.75,142.66,5.843]
[1641656240181,27.66479,142.75,142.68,4.0]
[1641656240378,27.66479,142.75,142.67,27.66479]
[1641656240579,33.26913605,142.75,142.68,4.91844824]
[1641656240978,33.26913605,142.75,142.69,4.91844824]
[1641656242084,33.26913605,142.75,142.69,8.91844824]
[1641656242281,34.38846511,142.78,142.73,4.0]
[1641656242481,6.72367511,142.78,142.73,11.426]
[1641656242681,6.72367511,142.78,142.73,7.426]
[1641656242881,7.00721743,142.81,142.73,7.426]
[1641656243082,12.98493103,142.82,142.74,4.0]
[1641656243381,12.98493103,142.82,142.73,9.176]
[1641656243581,12.98493103,142.82,142.75,4.0]
[1641656243582,8.06648279,142.82,142.75,4.0]
[1641656244482,8.06648279,142.82,142.75,8.91844824]
[1641656244683,8.06648279,142.82,142.75,4.91844824]
[1641656245382,8.06648279,142.82,142.76,4.0]
[1641656245582,8.06648279,142.82,142.76,10.646]
[1641656245782,8.06648279,142.82,142.76,6.646]
[1641656245982,8.06648279,142.82,142.76,10.646]
[1641656246183,27.66479,142.83,142.76,10.646]
[1641656246382,27.66479,142.83,142.76,6.646]
[1641656246582,27.66479,142.83,142.76,4.0]
[1641656246982,27.66479,142.83,142.76,8.91844824]
[1641656247183,27.66479,142.83,142.77,4.0]
[1641656247582,27.66479,142.83,142.76,4.91844824]
[1641656247783,27.66479,142.83,142.81,4.0]
[1641656247986,27.66479,142.83,142.82,4.0]
[1641656249089,4.91844824,142.9,142.82,4.0]
[1641656249387,4.91844824,142.9,142.86,4.0]
[1641656249786,9.67212748,142.93,142.86,4.0]
[1641656249988,9.67212748,142.93,142.84,8.33]
[1641656250587,5.59827026,142.91,142.85,27.66479]
[1641656251488,19.89534181,142.9,142.85,31.66479]
[1641656251887,19.89534181,142.9,142.85,27.66479]
[1641656252087,5.59827026,142.91,142.85,31.66479]
[1641656252990,25.59827026,142.91,142.85,31.66479]
[1641656253192,25.59827026,142.91,142.85,27.66479]
[1641656253392,5.5986394,142.9,142.85,27.66479]
[1641656255295,28.89485193,142.95,142.87,4.0]
[1641656255498,28.89485193,142.95,142.87,8.485]
[1641656255698,28.89485193,142.95,142.88,4.0]
[1641656255897,28.89485193,142.95,142.87,8.485]
[1641656256097,19.8914447,142.94,142.9,4.0]
[1641656256299,19.8914447,142.94,142.9,8.738]
[1641656256699,32.58323824,142.97,142.93,4.0]
[1641656256899,32.58323824,142.97,142.96,4.0]
[1641656257101,32.58323824,142.97,142.96,11.699]
[1641656257298,27.66479,142.97,142.96,11.699]
[1641656257499,27.66479,142.97,142.96,7.699]
[1641656258500,4.91844824,143.0,142.96,11.699]
[1641656258701,18.65469603,143.03,142.97,4.0]
[1641656258901,18.65469603,143.03,142.96,35.36379]
[1641656259102,8.05469603,143.03,142.97,4.0]
[1641656259301,8.05469603,143.03,142.96,39.36379]
[1641656259500,19.88173942,143.02,142.98,4.0]
[1641656259902,19.88173942,143.02,142.96,35.36379]
[1641656260304,19.88173942,143.02,142.99,4.0]
[1641656260502,19.88173942,143.02,142.99,10.123]
[1641656260704,8.05469603,143.03,143.01,27.66479]
[1641656260905,11.91365652,143.06,143.01,31.66479]
[1641656261303,11.91365652,143.06,143.01,27.66479]
[1641656261504,19.87933091,143.05,143.01,31.66479]
[1641656261704,19.87933091,143.05,143.01,27.66479]
[1641656261904,19.87933091,143.05,143.02,4.0]
[1641656262105,19.87933091,143.05,143.02,11.534]
[1641656262306,19.87933091,143.05,143.02,7.534]
[1641656262506,6.99398517,143.08,143.02,7.534]
[1641656262708,6.99398517,143.08,143.07,27.66479]
[1641656263009,20.0,143.09,143.07,33.14579]
[1641656263710,20.0,143.09,143.07,5.481]
[1641656263905,6.99447437,143.08,143.07,5.481]
[1641656264106,5.59193051,143.07,143.01,27.66479]
[1641656265010,5.59193051,143.07,143.01,31.66479]
[1641656265209,5.59193051,143.07,143.01,27.66479]
[1641656265408,5.59286117,143.04,143.01,27.66479]
[1641656265809,5.59286117,143.04,142.99,27.66479]
[1641656266310,5.59286117,143.04,142.99,31.66479]
[1641656266813,5.59286117,143.04,142.99,59.32958]
[1641656267011,5.59181055,143.07,142.99,55.32958]
[1641656267210,8.046,143.05,142.99,55.32958]
[1641656268312,8.046,143.05,142.99,59.32958]
[1641656269612,5.59214738,143.06,142.99,55.32958]
[1641656269812,5.59214738,143.06,142.99,64.07658]
[1641656270012,6.99447437,143.08,142.99,64.07658]
[1641656270214,6.99447437,143.08,143.02,4.0]
[1641656270413,6.99447437,143.08,143.02,5.809]
[1641656270614,6.99447437,143.08,143.02,9.809]
[1641656270813,6.99447437,143.08,143.02,33.47379]
[1641656271112,6.99447437,143.08,143.03,4.0]
[1641656271813,6.99447437,143.08,143.02,33.47379]
[1641656272014,6.99447437,143.08,143.03,4.0]
[1641656272214,6.70867832,143.1,143.03,4.0]
[1641656272514,6.70867832,143.1,143.04,4.0]
[1641656272915,6.70867832,143.1,143.02,33.47379]
[1641656273314,6.70867832,143.1,143.02,37.47379]
[1641656273516,6.99276249,143.11,143.06,4.0]
[1641656273715,6.99276249,143.11,143.06,12.259]
[1641656273916,10.56,143.12,143.06,8.259]
[1641656274315,10.56,143.12,143.11,4.0]
[1641656274516,4.91844824,143.15,143.11,9.789]
[1641656274718,4.91844824,143.15,143.13,3.18]
[1641656274918,4.91844824,143.15,143.14,27.66479]
[1641656275117,13.69344633,143.19,143.14,33.85479]
[1641656275518,13.69344633,143.19,143.14,37.03479]
[1641656276119,13.69344633,143.19,143.14,33.85479]
[1641656276319,13.69344633,143.19,143.14,6.19]
[1641656276521,5.58841864,143.16,143.06,10.005]
[1641656276718,5.58841864,143.16,143.1,3.18]
[1641656276919,19.86479498,143.18,143.11,27.66479]
[1641656277119,19.86479498,143.18,143.11,30.84479]
[1641656277319,19.86479498,143.18,143.11,27.66479]
[1641656277520,13.69301968,143.19,143.11,27.66479]
[1641656277721,13.69301968,143.19,143.12,3.18]
[1641656278123,5.58810011,143.17,143.11,27.66479]
[1641656278523,5.58810011,143.17,143.13,3.18]
[1641656278722,5.58810011,143.17,143.13,6.907]
[1641656278923,5.58810011,143.17,143.16,27.66479]
[1641656279122,5.58810011,143.17,143.08,1.746]
[1641656279123,5.58888414,143.15,143.09,3.18]
[1641656279322,5.58888414,143.15,143.11,3.18]
[1641656279525,14.5163078,143.17,143.06,8.635]
[1641656279722,14.5163078,143.17,143.05,1.746]
[1641656279723,12.94888816,143.15,143.05,1.746]
[1641656279923,5.59007469,143.12,143.04,8.09844824]
[1641656280124,11.96907469,143.12,143.04,8.09844824]
[1641656280624,11.96907469,143.12,143.05,3.18]
[1641656280826,6.379,143.12,143.05,3.18]
[1641656281024,5.58889349,143.15,143.07,3.18]
[1641656281225,5.58889349,143.15,143.08,3.18]
[1641656282425,0.82,143.11,143.05,1.746]
[1641656282625,0.82,143.1,143.04,29.41179]
[1641656282825,5.5908799,143.1,143.03,27.66479]
[1641656283225,5.5908799,143.1,143.04,3.18]
[1641656284726,5.5908799,143.1,143.05,3.18]
[1641656285326,5.5908799,143.1,143.03,62.35658]
[1641656285525,5.5908799,143.1,143.04,3.18]
[1641656286126,5.59124879,143.09,143.02,69.3517]
[1641656286526,5.59160134,143.08,143.02,69.3517]
[1641656289827,4.91844824,143.1,143.02,69.3517]
[1641656290027,10.50904108,143.1,143.02,69.3517]
[1641656290226,10.50904108,143.1,143.04,3.18]
[1641656290826,10.50904108,143.1,143.02,77.7567]
[1641656291027,10.50904108,143.1,143.06,27.66479]
[1641656291229,10.50904108,143.1,143.06,34.15579]
[1641656291429,4.91844824,143.11,143.09,3.18]
[1641656291628,4.91844824,143.11,143.09,8.519]
[1641656292529,5.58948506,143.13,143.09,8.519]
[1641656293030,5.58948506,143.13,143.06,27.66479]
[1641656293431,5.58948506,143.13,143.07,4.91844824]
[1641656294033,11.62468097,143.16,143.07,4.91844824]
[1641656294231,11.62468097,143.16,143.06,27.66479]
[1641656294432,4.91844824,143.14,143.06,27.66479]
[1641656294634,4.91844824,143.14,143.07,3.18]
[1641656295132,4.91844824,143.15,143.06,60.24802824]
[1641656295532,4.91844824,143.15,143.09,3.18]
[1641656296135,4.91844824,143.15,143.07,67.7294]
[1641656296535,4.91844824,143.15,143.09,3.18]
[1641656297034,4.91844824,143.15,143.1,27.66479]
[1641656297533,4.91844824,143.15,143.1,30.84479]
[1641656298033,4.91844824,143.15,143.1,22.89974733]
[1641656298433,4.91844824,143.15,143.1,29.27474733]
[1641656298635,4.91844824,143.15,143.1,26.09474733]
[1641656298835,5.58908139,143.14,143.1,26.09474733]
[1641656299037,5.58908139,143.14,143.1,6.375]
[1641656299535,5.58908139,143.14,143.07,72.64784824]
[1641656299735,5.58908139,143.14,143.07,75.82784824]
[1641656299935,0.82,143.13,143.07,4.91844824]
[1641656300235,5.59029307,143.11,143.07,4.91844824]
[1641656300436,5.59145605,143.08,143.07,4.91844824]
[1641656300835,5.59145605,143.08,143.04,4.824e-05]
[1641656301038,5.59145605,143.08,143.06,27.66479]
[1641656301436,24.91844824,143.11,143.06,27.66479]
[1641656301636,5.59095515,143.09,143.04,27.66483824]
[1641656304738,5.59095515,143.09,143.04,27.66479]
[1641656305538,14.83340262,143.12,143.04,27.66479]
[1641656305739,14.83340262,143.12,143.06,3.18]
[1641656306338,20.42314188,143.12,143.06,3.18]
[1641656306538,5.58973926,143.12,143.07,3.15562782]
[1641656307238,5.58973926,143.12,143.08,27.66479]
[1641656309241,5.58973926,143.12,143.09,3.15677176]
[1641656310141,5.58973926,143.12,143.08,27.66479]
[1641656311041,5.58973926,143.12,143.06,3.18]
[1641656311240,5.59119177,143.09,143.04,42.49819262]
[1641656311443,5.59235268,143.06,143.04,42.49819262]
[1641656311942,5.59235268,143.06,143.04,27.66479]
[1641656315546,6.99398517,143.08,143.01,68.0788]
[1641656315746,6.99398517,143.08,143.06,3.18]
[1641656317748,19.8705824,143.07,143.06,3.18]
[1641656319352,19.8705824,143.07,143.01,63.0788]
[1641656319353,6.71082356,143.06,143.0,14.83340262]
[1641656319550,7.53082356,143.06,143.0,14.83340262]
[1641656319753,6.71212665,143.03,143.0,14.83340262]
[1641656319955,13.01012665,143.03,143.0,14.83340262]
[1641656320353,13.01012665,143.03,143.02,3.18]
[1641656320354,6.298,143.03,143.02,3.18]
[1641656320757,6.298,143.03,143.0,14.83340262]
[1641656320954,5.59254375,143.05,143.0,14.83340262]
[1641656321159,5.59254375,143.05,142.99,3.18]
[1641656321358,5.59254375,143.05,143.02,27.66479]
[1641656321559,5.5935709,143.03,143.02,27.66479]
[1641656322258,5.5935709,143.03,143.0,27.66479]
[1641656322460,5.5935709,143.03,142.99,18.01340262]
[1641656322859,5.5935709,143.03,142.99,14.83340262]
[1641656323058,5.59436568,143.01,142.99,14.83340262]
[1641656323259,5.59436568,143.01,143.0,3.15562606]
[1641656324362,5.59436568,143.01,142.98,3.15562606]
[1641656325261,5.59501098,142.99,142.98,3.15562606]
[1641656325462,5.59501098,142.99,142.97,3.15562606]
[1641656326063,5.59501098,142.99,142.96,39.65381868]
[1641656326362,5.59537229,142.98,142.96,39.65381868]
[1641656326564,5.59537229,142.98,142.96,24.82041606]
[1641656329967,5.59406802,143.01,142.97,3.18]
[1641656330165,5.59245825,143.05,142.97,7.728]
[1641656330367,5.59245825,143.05,143.0,3.18]
[1641656330564,5.59245825,143.05,143.0,8.318]
[1641656330766,19.87336281,143.04,143.0,8.318]
[1641656331568,5.5936681,143.02,142.98,14.83340262]
[1641656332168,5.5936681,143.02,142.97,86.45960262]
[1641656332366,5.5936681,143.02,142.97,14.83340262]
[1641656332566,5.592473,143.05,143.01,3.18]
[1641656332768,5.592473,143.05,143.01,6.574]
[1641656333567,5.592473,143.05,143.04,3.18]
[1641656334167,5.592473,143.05,142.99,14.83340262]
[1641656334367,5.59316758,143.04,142.99,14.83340262]
[1641656335066,0.82,143.03,142.98,65.8665]
[1641656335267,5.5939572,143.02,142.98,65.8665]
[1641656335467,11.1019572,143.02,142.97,14.83340262]
[1641656335868,11.1019572,143.02,142.95,14.83340262]
[1641656336368,20.82,142.99,142.95,14.83340262]
[1641656336568,0.82,142.97,142.92,38.50091258]
[1641656336769,0.82,142.97,142.91,38.50091258]
[1641656336969,5.59684322,142.94,142.91,38.50091258]
[1641656337572,5.59684322,142.94,142.87,58.20725105]
[1641656337772,5.59684322,142.94,142.87,44.52181804]
[1641656337976,7.283,142.96,142.87,44.52181804]
[1641656338375,7.283,142.96,142.87,27.66479]
[1641656339278,7.283,142.96,142.9,3.18]
[1641656339877,28.103,142.96,142.9,3.18]
[1641656340481,27.283,142.96,142.94,3.18]
[1641656340679,7.283,142.96,142.93,3.18]
[1641656340877,34.66440502,142.97,142.93,3.18]
[1641656341078,27.66479,142.97,142.93,3.18]
[1641656341278,27.66479,142.97,142.88,4.0]
[1641656341477,27.66479,142.97,142.94,3.18]
[1641656341877,27.66479,142.97,142.88,1.748]
[1641656342088,27.66479,142.97,142.91,3.18]
[1641656342089,34.96879,142.97,142.91,3.18]
[1641656342279,55.78879,142.97,142.89,3.18]
[1641656342480,55.78879,142.97,142.87,44.54217252]
[1641656342681,0.82,142.96,142.9,3.18]
[1641656343284,5.59643942,142.95,142.9,3.18]
[1641656343483,5.59643942,142.95,142.87,44.54217252]
[1641656343884,5.59643942,142.95,142.91,3.18]
[1641656344984,5.59643942,142.95,142.87,44.54217252]
[1641656345585,11.19312427,142.95,142.87,44.54217252]
[1641656346587,11.19312427,142.95,142.91,3.18]
[1641656346987,11.19312427,142.95,142.87,44.54217252]
[1641656347385,11.19312427,142.95,142.92,3.18]
[1641656348988,5.59668485,142.95,142.92,3.18]
[1641656349190,5.59668485,142.95,142.93,3.18]
[1641656349587,5.59668485,142.95,142.87,48.54217252]
[1641656349787,5.59668485,142.95,142.92,3.18]
[1641656349987,5.59668485,142.95,142.93,3.18]
[1641656352391,5.59668485,142.95,142.89,4.0]
[1641656352591,13.57768485,142.95,142.93,3.18]
[1641656353396,13.57768485,142.95,142.89,4.0]
[1641656353597,13.57768485,142.95,142.94,3.18]
[1641656353895,5.59668485,142.95,142.94,3.18]
[1641656354294,10.22,142.98,142.94,3.18]
[1641656354695,10.22,142.98,142.91,65.4033]
[1641656354696,10.22,142.98,142.91,69.4033]
[1641656355195,40.25831453,142.99,142.96,3.18]
[1641656355397,33.25992416,142.99,142.92,4.0]
[1641656355598,33.25992416,142.99,142.97,3.18]
[1641656356001,5.59513416,142.99,142.97,3.18]
[1641656356400,5.59513416,142.99,142.93,4.0]
[1641656356600,5.59513416,142.99,142.98,3.18]
[1641656356800,10.36,143.02,142.98,3.18]
[1641656357501,10.36,143.02,142.94,4.0]
[1641656358203,0.10522563,143.01,142.99,3.18]
[1641656358402,10.36,143.02,142.99,3.18]
[1641656359903,10.36,143.02,143.0,3.18]
[1641656360104,15.05028034,143.04,143.01,3.18]
[1641656360304,6.99618708,143.04,143.01,5.984]
[1641656360506,6.99618708,143.04,143.03,3.18]
[1641656360707,6.99618708,143.04,143.02,3.18]
[1641656360912,6.99618708,143.04,143.01,5.984]
[1641656361807,6.99618708,143.04,143.01,10.92917841]
[1641656364311,6.99618708,143.04,143.03,3.18]
[1641656364509,17.53168943,143.07,143.03,3.18]
[1641656364710,17.53168943,143.07,143.06,3.18]
[1641656364909,10.53721506,143.07,143.06,11.366]
[1641656365111,4.94517841,143.08,143.06,11.366]
[1641656365312,4.94517841,143.08,143.06,8.186]
[1641656365912,4.94517841,143.08,143.03,67.1849]
[1641656366112,6.70952194,143.09,143.05,4.94517841]
[1641656366512,6.70952194,143.09,143.08,3.18]
[1641656366913,26.57730336,143.09,143.08,3.18]
[1641656367612,6.70952194,143.09,143.08,3.18]
[1641656368913,13.69909369,143.13,143.08,11.413]
[1641656369113,13.69909369,143.13,143.12,3.18]
[1641656369314,13.69909369,143.13,143.12,10.5]
[1641656369516,6.70730904,143.13,143.12,10.5]
[1641656369714,26.57013284,143.13,143.12,10.5]
[1641656370818,4.94517841,143.16,143.12,10.5]
[1641656371017,20.0,143.18,143.12,11.32]
[1641656371216,20.0,143.18,143.17,3.18]
[1641656371418,20.0,143.18,143.17,9.688]
[1641656371617,20.0,143.18,143.17,6.508]
[1641656371817,20.0,143.18,143.17,9.273]
[1641656372421,27.66479,143.19,143.17,9.273]
[1641656373421,9e-05,143.19,143.18,0.928]
[1641656373623,4.94517841,143.21,143.18,4.928]
[1641656373821,4.90818421,143.24,143.2,4.928]
[1641656374021,4.90818421,143.24,143.22,4.0]
[1641656374221,4.90818421,143.24,143.23,4.0]
[1641656374421,4.90818421,143.24,143.23,10.134]
[1641656374622,4.90818421,143.24,143.23,7.062]
[1641656374822,8.0417286,143.26,143.23,7.062]
[1641656375625,8.0417286,143.26,143.23,6.134]
[1641656375825,8.0417286,143.26,143.25,0.928]
[1641656376627,8.0417286,143.26,143.2,27.66479]
[1641656376833,6.98567936,143.25,143.2,0.928]
[1641656377032,5.58550176,143.23,143.17,27.66479]
[1641656377232,11.27750176,143.23,143.17,27.66479]
[1641656377630,11.27750176,143.23,143.2,0.928]
[1641656377830,11.27750176,143.23,143.22,0.928]
[1641656378031,5.692,143.23,143.22,0.928]
[1641656378231,26.70105861,143.27,143.22,7.22]
[1641656378433,26.70105861,143.27,143.22,6.292]
[1641656379533,5.58526589,143.24,143.18,0.928]
[1641656379735,12.57143328,143.24,143.18,0.928]
[1641656379933,12.57143328,143.24,143.17,27.66479]
[1641656380136,12.57143328,143.24,143.19,0.928]
[1641656380735,5.58602417,143.22,143.19,0.928]
[1641656381136,5.58602417,143.22,143.17,27.66479]
[1641656383738,5.58602417,143.22,143.2,0.928]
[1641656383940,5.58602417,143.22,143.21,0.928]
[1641656385942,5.58602417,143.22,143.17,27.66479]
[1641656386140,6.509,143.22,143.21,0.928]
[1641656387446,6.70183142,143.25,143.21,0.928]
[1641656387646,6.70183142,143.25,143.2,27.66479]
[1641656387846,6.70183142,143.25,143.23,0.928]
[1641656388649,6.70183142,143.25,143.22,0.928]
[1641656388951,8.65772506,143.23,143.16,71.1957]
[1641656389149,5.58726071,143.19,143.14,0.928]
[1641656389448,14.40826071,143.19,143.14,0.928]
[1641656390648,14.40826071,143.19,143.15,0.928]
[1641656391050,5.58726071,143.19,143.18,0.928]
[1641656391249,6.7033045,143.22,143.18,0.928]
[1641656391652,6.7033045,143.22,143.19,0.928]
[1641656391854,6.7033045,143.22,143.13,68.461]
[1641656392054,6.7033045,143.22,143.13,64.461]
[1641656392455,6.7033045,143.22,143.16,0.928]
[1641656392952,6.7033045,143.22,143.13,64.461]
[1641656393153,5.58697489,143.2,143.13,64.461]
[1641656393452,5.58732463,143.19,143.17,0.928]
[1641656393654,5.58732463,143.19,143.13,64.461]
[1641656393655,5.58732463,143.19,143.18,0.928]
[1641656393854,20.0,143.22,143.18,0.928]
[1641656394054,6.98665549,143.23,143.19,0.928]
[1641656394257,5.58536522,143.24,143.2,0.928]
[1641656394656,5.58536522,143.24,143.18,8.039]
[1641656395057,5.58536522,143.24,143.2,0.928]
[1641656395456,5.58536522,143.24,143.21,0.928]
[1641656395657,28.65736522,143.24,143.2,0.928]
[1641656395859,5.58536522,143.24,143.2,0.928]
[1641656396257,5.58536522,143.24,143.18,7.696]
[1641656396258,5.58536522,143.24,143.21,0.928]
[1641656396557,5.58536522,143.24,143.2,0.928]
[1641656396761,5.58536522,143.24,143.17,27.66479]
[1641656396962,5.58536522,143.24,143.2,0.928]
[1641656397158,5.58536522,143.24,143.17,28.59279]
[1641656397358,5.58536522,143.24,143.18,0.928]
[1641656397958,25.58536522,143.24,143.17,27.66479]
[1641656398160,25.58536522,143.24,143.18,0.928]
[1641656398359,8.65814142,143.22,143.13,79.26490265]
[1641656398559,23.58528508,143.22,143.13,79.26490265]
[1641656398860,20.51328508,143.22,143.16,0.928]
[1641656399059,13.52614142,143.22,143.17,0.928]
[1641656399261,7.94,143.22,143.19,0.928]
[1641656399462,7.94,143.22,143.16,27.66479]
[1641656399663,6.98616739,143.24,143.19,0.928]
[1641656399863,6.98616739,143.24,143.16,27.66479]
[1641656400465,5.58578617,143.23,143.16,28.59279]
[1641656400666,5.58578617,143.23,143.16,27.66479]
[1641656401166,5.58578617,143.23,143.18,0.928]
[1641656401366,5.58578617,143.23,143.17,3.15259402]